[Event "*** Titled Tuesday Blitz"]
[Site "Chess.com"]
[Date "2019.02.05"]
[Round "5"]
[White "playerorkinyo"]
[Black "matiss90"]
[Result "0-1"]
[WhiteElo "2339"]
[BlackElo "2473"]
[TimeControl "180+2"]
[EndTime "14:06:16 PST"]
[Termination "matiss90 won by resignation"]

1. d4 {[%clk 0:03:01.9]} 1... Nf6 {[%clk 0:03:00.4]} 2. c4 {[%clk 0:03:03.8]}
2... g6 {[%clk 0:03:01.4]} 3. Nc3 {[%clk 0:03:04.5]} 3... Bg7 {[%clk 0:03:02.4]}
4. e4 {[%clk 0:03:04.5]} 4... O-O {[%clk 0:03:03.6]} 5. Nf3 {[%clk 0:03:02.9]}
5... d6 {[%clk 0:03:04.8]} 6. Be2 {[%clk 0:03:03.9]} 6... Na6 {[%clk 0:03:05.5]}
7. O-O {[%clk 0:03:01]} 7... e5 {[%clk 0:03:06.3]} 8. Be3 {[%clk 0:02:56.4]}
8... Ng4 {[%clk 0:03:06.4]} 9. Bg5 {[%clk 0:02:55.5]} 9... Qe8 {[%clk
0:03:07.4]} 10. h3 {[%clk 0:02:34.5]} 10... h6 {[%clk 0:03:07.9]} 11. Bh4 {[%clk
0:02:24.9]} 11... Nf6 {[%clk 0:03:07.1]} 12. dxe5 {[%clk 0:02:06.3]} 12... dxe5
{[%clk 0:03:07.8]} 13. Bg3 {[%clk 0:01:59.1]} 13... Nh5 {[%clk 0:03:08.1]} 14.
Bh2 {[%clk 0:01:59]} 14... Nf4 {[%clk 0:03:08.5]} 15. Nd5 {[%clk 0:01:58.3]}
15... Nxe2+ {[%clk 0:03:06.7]} 16. Qxe2 {[%clk 0:01:58.7]} 16... c6 {[%clk
0:03:07.4]} 17. Nc3 {[%clk 0:01:56.5]} 17... Nc5 {[%clk 0:03:00.5]} 18. Rad1
{[%clk 0:01:53.4]} 18... Ne6 {[%clk 0:03:00.6]} 19. Nxe5 {[%clk 0:01:50.8]}
19... g5 {[%clk 0:01:56.6]} 20. Nf3 {[%clk 0:01:38.9]} 20... Nf4 {[%clk
0:01:42.9]} 21. Bxf4 {[%clk 0:01:35.7]} 21... gxf4 {[%clk 0:01:44.8]} 22. Rfe1
{[%clk 0:01:25.1]} 22... Qe6 {[%clk 0:01:39]} 23. e5 {[%clk 0:01:20.5]} 23...
Qg6 {[%clk 0:01:38.4]} 24. Qe4 {[%clk 0:01:10]} 24... Bf5 {[%clk 0:01:39.2]} 25.
Qxf4 {[%clk 0:01:09.6]} 25... Bxh3 {[%clk 0:01:40.2]} 26. Nh4 {[%clk 0:00:53.6]}
26... Qg4 {[%clk 0:01:31.2]} 27. Re4 {[%clk 0:00:49.3]} 27... Qxf4 {[%clk
0:01:26]} 28. Rxf4 {[%clk 0:00:50.2]} 28... Be6 {[%clk 0:01:27.5]} 29. Nf3
{[%clk 0:00:48.2]} 29... b5 {[%clk 0:01:23.6]} 30. cxb5 {[%clk 0:00:44.3]} 30...
cxb5 {[%clk 0:01:25.5]} 31. a3 {[%clk 0:00:32]} 31... a6 {[%clk 0:01:26]} 32.
Ne4 {[%clk 0:00:31.2]} 32... Rfd8 {[%clk 0:01:23.7]} 33. Nd6 {[%clk 0:00:28.7]}
33... Ra7 {[%clk 0:01:08.7]} 34. Rfd4 {[%clk 0:00:21.4]} 34... Rad7 {[%clk
0:01:08.9]} 35. g4 {[%clk 0:00:21.6]} 35... Kf8 {[%clk 0:01:06.2]} 36. Kg2
{[%clk 0:00:22.3]} 36... Bb3 {[%clk 0:01:01.9]} 37. R1d3 {[%clk 0:00:22.4]}
37... Be6 {[%clk 0:01:01.3]} 38. Kh3 {[%clk 0:00:22.5]} 38... h5 {[%clk
0:01:01.5]} 39. Kh4 {[%clk 0:00:23.7]} 39... hxg4 {[%clk 0:01:02.6]} 40. Ng5
{[%clk 0:00:23.5]} 40... Bxe5 {[%clk 0:01:01.7]} 41. Nxe6+ {[%clk 0:00:22.9]}
41... fxe6 {[%clk 0:01:03]} 42. Rxg4 {[%clk 0:00:22.3]} 42... Rh7+ {[%clk
0:00:50.9]} 43. Kg5 {[%clk 0:00:21.6]} 43... Rg7+ {[%clk 0:00:51.5]} 44. Kh5
{[%clk 0:00:23.1]} 44... Rxg4 {[%clk 0:00:51.4]} 45. Kxg4 {[%clk 0:00:23.7]} 0-1

[Event "*** Titled Tuesday Blitz"]
[Site "Chess.com"]
[Date "2019.02.05"]
[Round "5"]
[White "jamengrand"]
[Black "TristanCalistri"]
[Result "0-1"]
[WhiteElo "2284"]
[BlackElo "2240"]
[TimeControl "180+2"]
[EndTime "14:06:22 PST"]
[Termination "TristanCalistri won by checkmate"]

1. e4 {[%clk 0:02:46.7]} 1... e5 {[%clk 0:02:59.8]} 2. Nf3 {[%clk 0:02:47.4]}
2... d6 {[%clk 0:03:01.1]} 3. d4 {[%clk 0:02:48.4]} 3... exd4 {[%clk 0:03:02.3]}
4. Nxd4 {[%clk 0:02:49]} 4... Nf6 {[%clk 0:03:03.8]} 5. Nc3 {[%clk 0:02:49.5]}
5... Be7 {[%clk 0:03:05.2]} 6. h3 {[%clk 0:02:50.4]} 6... O-O {[%clk 0:03:05.6]}
7. g3 {[%clk 0:02:51.7]} 7... d5 {[%clk 0:03:05.3]} 8. exd5 {[%clk 0:02:51.7]}
8... Nxd5 {[%clk 0:03:06]} 9. Bg2 {[%clk 0:02:51.8]} 9... Bb4 {[%clk 0:03:03]}
10. O-O {[%clk 0:02:25.5]} 10... Nxc3 {[%clk 0:03:02.8]} 11. bxc3 {[%clk
0:02:23.4]} 11... Bxc3 {[%clk 0:03:03.8]} 12. Be3 {[%clk 0:02:17.2]} 12... Bxa1
{[%clk 0:03:02.1]} 13. Qxa1 {[%clk 0:02:18]} 13... c6 {[%clk 0:02:52.8]} 14. Nb3
{[%clk 0:01:42.7]} 14... Na6 {[%clk 0:02:43.5]} 15. Bd4 {[%clk 0:01:42.2]} 15...
f6 {[%clk 0:02:38.6]} 16. Qc3 {[%clk 0:01:39.6]} 16... Re8 {[%clk 0:02:27.8]}
17. Na5 {[%clk 0:01:18.1]} 17... Qe7 {[%clk 0:00:39.3]} 18. Rb1 {[%clk
0:00:38.1]} 18... Qf7 {[%clk 0:00:31.6]} 19. a3 {[%clk 0:00:25.3]} 19... Nc7
{[%clk 0:00:21.1]} 20. Bf1 {[%clk 0:00:21.6]} 20... Nd5 {[%clk 0:00:21.6]} 21.
Qf3 {[%clk 0:00:22.3]} 21... Kh8 {[%clk 0:00:21.7]} 22. c4 {[%clk 0:00:22.4]}
22... Ne7 {[%clk 0:00:21.2]} 23. c5 {[%clk 0:00:21.2]} 23... Nd5 {[%clk
0:00:21.6]} 24. Nc4 {[%clk 0:00:22]} 24... Rd8 {[%clk 0:00:21.4]} 25. Nd6 {[%clk
0:00:23.2]} 25... Qg8 {[%clk 0:00:21.7]} 26. Bc4 {[%clk 0:00:23.6]} 26... Be6
{[%clk 0:00:22.5]} 27. Rxb7 {[%clk 0:00:21.6]} 27... Rd7 {[%clk 0:00:21.1]} 28.
Rxd7 {[%clk 0:00:20.1]} 28... Bxd7 {[%clk 0:00:23]} 29. Bxd5 {[%clk 0:00:20.5]}
29... cxd5 {[%clk 0:00:23.7]} 30. h4 {[%clk 0:00:17.5]} 30... Rb8 {[%clk
0:00:24]} 31. h5 {[%clk 0:00:18]} 31... h6 {[%clk 0:00:25.2]} 32. Kg2 {[%clk
0:00:12.9]} 32... Qe6 {[%clk 0:00:25.9]} 33. Qf4 {[%clk 0:00:10.6]} 33... Rb3
{[%clk 0:00:22.5]} 34. a4 {[%clk 0:00:10.4]} 34... Rd3 {[%clk 0:00:21.2]} 35.
Be3 {[%clk 0:00:06.8]} 35... Qh3+ {[%clk 0:00:22.2]} 36. Kg1 {[%clk 0:00:06]}
36... Rd1# {[%clk 0:00:22.7]} 0-1

[Event "*** Titled Tuesday Blitz"]
[Site "Chess.com"]
[Date "2019.02.05"]
[Round "5"]
[White "Caisachess"]
[Black "TakeMyPieces97"]
[Result "0-1"]
[WhiteElo "2371"]
[BlackElo "2273"]
[TimeControl "180+2"]
[EndTime "14:06:23 PST"]
[Termination "TakeMyPieces97 won by resignation"]

1. e4 {[%clk 0:03:01.9]} 1... e5 {[%clk 0:02:57.8]} 2. Nf3 {[%clk 0:03:02.5]}
2... Nc6 {[%clk 0:02:59.1]} 3. Bc4 {[%clk 0:03:03.3]} 3... Nf6 {[%clk
0:02:56.4]} 4. d3 {[%clk 0:03:04.3]} 4... Bc5 {[%clk 0:02:56.1]} 5. O-O {[%clk
0:03:04.9]} 5... a6 {[%clk 0:02:56.2]} 6. a4 {[%clk 0:03:06.4]} 6... Ba7 {[%clk
0:02:55.8]} 7. c3 {[%clk 0:03:07.6]} 7... d6 {[%clk 0:02:56]} 8. Bb3 {[%clk
0:03:08.9]} 8... h6 {[%clk 0:02:55.6]} 9. h3 {[%clk 0:03:09.7]} 9... g5 {[%clk
0:02:51.8]} 10. Be3 {[%clk 0:03:00.4]} 10... g4 {[%clk 0:02:52.4]} 11. hxg4
{[%clk 0:03:01.2]} 11... Bxe3 {[%clk 0:02:50.5]} 12. fxe3 {[%clk 0:03:01.6]}
12... Nxg4 {[%clk 0:02:52.1]} 13. Bxf7+ {[%clk 0:02:51.2]} 13... Ke7 {[%clk
0:01:55.7]} 14. Qe1 {[%clk 0:02:19.2]} 14... Kxf7 {[%clk 0:01:45.7]} 15. Nxe5+
{[%clk 0:02:19.6]} 15... Kg7 {[%clk 0:01:33.7]} 16. Nxg4 {[%clk 0:01:59]} 16...
Bxg4 {[%clk 0:01:35.6]} 17. Qg3 {[%clk 0:01:58.7]} 17... Qg5 {[%clk 0:01:36.1]}
18. Rf4 {[%clk 0:01:51.3]} 18... h5 {[%clk 0:01:36.3]} 19. Nd2 {[%clk
0:01:49.9]} 19... Ne5 {[%clk 0:01:33.7]} 20. Nf3 {[%clk 0:01:43.4]} 20... Qg6
{[%clk 0:01:24.8]} 21. Nh4 {[%clk 0:01:34.2]} 21... Qg5 {[%clk 0:01:07.8]} 22.
Nf3 {[%clk 0:01:32.5]} 22... Qe7 {[%clk 0:01:03.3]} 23. d4 {[%clk 0:01:28.3]}
23... Nd3 {[%clk 0:00:49.3]} 24. Rf5 {[%clk 0:01:28.3]} 24... Raf8 {[%clk
0:00:41.6]} 25. Nh4 {[%clk 0:00:54.6]} 25... Qxe4 {[%clk 0:00:34.9]} 26. Rg5+
{[%clk 0:00:55.4]} 26... Kh6 {[%clk 0:00:30]} 27. Rg6+ {[%clk 0:00:54]} 27...
Kh7 {[%clk 0:00:25.7]} 28. Rd1 {[%clk 0:00:38.2]} 28... Nxb2 {[%clk 0:00:21.7]}
29. Re1 {[%clk 0:00:33.2]} 29... Nc4 {[%clk 0:00:21.4]} 30. Kh2 {[%clk
0:00:24.7]} 30... Nd2 {[%clk 0:00:22.1]} 31. Rg5 {[%clk 0:00:22.7]} 31... Nf1+
{[%clk 0:00:21]} 32. Rxf1 {[%clk 0:00:23]} 32... Rxf1 {[%clk 0:00:22.9]} 33. Ng6
{[%clk 0:00:22.4]} 33... Rg8 {[%clk 0:00:21.9]} 0-1

[Event "*** Titled Tuesday Blitz"]
[Site "Chess.com"]
[Date "2019.02.05"]
[Round "5"]
[White "NCchamp"]
[Black "Saitama_Hero"]
[Result "0-1"]
[WhiteElo "2163"]
[BlackElo "2225"]
[TimeControl "180+2"]
[EndTime "14:06:26 PST"]
[Termination "Saitama_Hero won on time"]

1. c4 {[%clk 0:03:01.9]} 1... Nf6 {[%clk 0:03:00.3]} 2. Nc3 {[%clk 0:03:02.4]}
2... e6 {[%clk 0:03:02.2]} 3. e4 {[%clk 0:03:03]} 3... Nc6 {[%clk 0:03:03.3]} 4.
d4 {[%clk 0:03:02.9]} 4... Bb4 {[%clk 0:03:04.7]} 5. Qd3 {[%clk 0:01:48.7]} 5...
Bxc3+ {[%clk 0:02:47.3]} 6. bxc3 {[%clk 0:01:49.1]} 6... d6 {[%clk 0:02:45.5]}
7. f4 {[%clk 0:01:44.4]} 7... d5 {[%clk 0:02:27.7]} 8. cxd5 {[%clk 0:01:44.5]}
8... exd5 {[%clk 0:02:27.8]} 9. e5 {[%clk 0:01:45.6]} 9... Ne4 {[%clk
0:02:29.3]} 10. Qe3 {[%clk 0:01:22.2]} 10... O-O {[%clk 0:02:19.7]} 11. Bd3
{[%clk 0:01:22.5]} 11... Nxc3 {[%clk 0:02:03.1]} 12. Bb2 {[%clk 0:00:54.1]}
12... Ne4 {[%clk 0:02:02.3]} 13. Bxe4 {[%clk 0:00:55]} 13... dxe4 {[%clk
0:02:04.2]} 14. Qxe4 {[%clk 0:00:56.9]} 14... Qe7 {[%clk 0:01:53.9]} 15. d5
{[%clk 0:00:54.4]} 15... Bf5 {[%clk 0:01:42.7]} 16. Qxf5 {[%clk 0:00:20.6]}
16... Qb4+ {[%clk 0:01:41.8]} 17. Kf1 {[%clk 0:00:17.4]} 17... Qxb2 {[%clk
0:01:42.7]} 18. Rd1 {[%clk 0:00:16.6]} 18... Nb4 {[%clk 0:01:26.5]} 19. Ne2
{[%clk 0:00:17.3]} 19... Rad8 {[%clk 0:01:23.1]} 20. Qe4 {[%clk 0:00:16.3]}
20... Nxa2 {[%clk 0:00:43.8]} 21. Rb1 {[%clk 0:00:08.8]} 21... Qd2 {[%clk
0:00:38.1]} 22. Rb3 {[%clk 0:00:03.1]} 22... Rxd5 {[%clk 0:00:34.6]} 23. Kf2
{[%clk 0:00:03.6]} 23... Rfd8 {[%clk 0:00:26.7]} 24. Ra1 {[%clk 0:00:04.4]}
24... Rd4 {[%clk 0:00:17.1]} 25. Qe3 {[%clk 0:00:04.1]} 25... Qc2 {[%clk
0:00:09.8]} 26. Ra3 {[%clk 0:00:04.2]} 26... Rd3 {[%clk 0:00:10.2]} 27. Qe4
{[%clk 0:00:03.9]} 27... Qc5+ {[%clk 0:00:08.7]} 28. Kf1 {[%clk 0:00:02.1]}
28... Qxa3 {[%clk 0:00:10.1]} 29. Re1 {[%clk 0:00:02.4]} 29... Re3 {[%clk
0:00:09.5]} 30. Qf5 {[%clk 0:00:02.9]} 30... Qd3 {[%clk 0:00:09.7]} 31. Qg5
{[%clk 0:00:03.2]} 31... Nc3 {[%clk 0:00:10.2]} 32. Qg4 {[%clk 0:00:03.5]} 32...
Nxe2 {[%clk 0:00:08.3]} 33. Kf2 {[%clk 0:00:03.8]} 33... Qd2 {[%clk 0:00:06.9]}
0-1

[Event "*** Titled Tuesday Blitz"]
[Site "Chess.com"]
[Date "2019.02.05"]
[Round "5"]
[White "Morshynska"]
[Black "sandager"]
[Result "1-0"]
[WhiteElo "2085"]
[BlackElo "2118"]
[TimeControl "180+2"]
[EndTime "14:06:29 PST"]
[Termination "Morshynska won by checkmate"]

1. d4 {[%clk 0:03:01.9]} 1... Nf6 {[%clk 0:02:59.8]} 2. c4 {[%clk 0:03:02.3]}
2... g6 {[%clk 0:03:00.7]} 3. Nf3 {[%clk 0:02:55.5]} 3... Bg7 {[%clk 0:03:01.2]}
4. g3 {[%clk 0:02:56.6]} 4... O-O {[%clk 0:03:00.8]} 5. Bg2 {[%clk 0:02:55.6]}
5... c6 {[%clk 0:03:01.9]} 6. O-O {[%clk 0:02:54.7]} 6... d5 {[%clk 0:03:03.3]}
7. Nc3 {[%clk 0:02:43.8]} 7... dxc4 {[%clk 0:03:03]} 8. Ne5 {[%clk 0:02:39]}
8... Ng4 {[%clk 0:03:04.3]} 9. Nxg4 {[%clk 0:02:20.1]} 9... Bxg4 {[%clk
0:03:02.8]} 10. h3 {[%clk 0:02:21.3]} 10... Be6 {[%clk 0:03:01.3]} 11. Be3
{[%clk 0:02:00.6]} 11... Na6 {[%clk 0:03:01.3]} 12. Qd2 {[%clk 0:01:54.2]} 12...
Nc7 {[%clk 0:02:43.2]} 13. Rad1 {[%clk 0:01:51.2]} 13... Qd7 {[%clk 0:02:41.2]}
14. Kh2 {[%clk 0:01:51.3]} 14... b5 {[%clk 0:02:41.7]} 15. Ne4 {[%clk 0:01:45]}
15... Rad8 {[%clk 0:02:20.4]} 16. Nc5 {[%clk 0:01:43.2]} 16... Qc8 {[%clk
0:02:21.5]} 17. Qa5 {[%clk 0:01:08]} 17... a6 {[%clk 0:01:51.4]} 18. Bg5 {[%clk
0:00:52.6]} 18... f6 {[%clk 0:01:42.6]} 19. Bc1 {[%clk 0:00:45.9]} 19... Bd5
{[%clk 0:01:22.2]} 20. e4 {[%clk 0:00:46.2]} 20... Bf7 {[%clk 0:01:22.1]} 21.
Be3 {[%clk 0:00:40.5]} 21... e5 {[%clk 0:01:10.6]} 22. dxe5 {[%clk 0:00:31.1]}
22... fxe5 {[%clk 0:01:11.2]} 23. Bf3 {[%clk 0:00:22.1]} 23... h5 {[%clk
0:01:07.5]} 24. h4 {[%clk 0:00:20.9]} 24... Ne6 {[%clk 0:01:07.4]} 25. Bg2
{[%clk 0:00:20.4]} 25... Nd4 {[%clk 0:01:05.4]} 26. Bh3 {[%clk 0:00:19.9]} 26...
Qa8 {[%clk 0:00:49.4]} 27. Kg2 {[%clk 0:00:13.4]} 27... Qa7 {[%clk 0:00:35.6]}
28. Bg5 {[%clk 0:00:13.6]} 28... Ra8 {[%clk 0:00:34.1]} 29. Nd7 {[%clk
0:00:13.2]} 29... Rfe8 {[%clk 0:00:31.8]} 30. Nf6+ {[%clk 0:00:13.8]} 30... Bxf6
{[%clk 0:00:31.3]} 31. Bxf6 {[%clk 0:00:15.7]} 31... c5 {[%clk 0:00:28.4]} 32.
Qd2 {[%clk 0:00:15.5]} 32... b4 {[%clk 0:00:28.5]} 33. Qh6 {[%clk 0:00:15.7]}
33... Be6 {[%clk 0:00:09]} 34. Qh8+ {[%clk 0:00:15.7]} 34... Kf7 {[%clk
0:00:09.5]} 35. Qg7# {[%clk 0:00:17]} 1-0

[Event "*** Titled Tuesday Blitz"]
[Site "Chess.com"]
[Date "2019.02.05"]
[Round "5"]
[White "GelmanAlexander"]
[Black "ElGasanov"]
[Result "0-1"]
[WhiteElo "2499"]
[BlackElo "2722"]
[TimeControl "180+2"]
[EndTime "14:06:31 PST"]
[Termination "ElGasanov won by resignation"]

1. f4 {[%clk 0:03:01.9]} 1... d5 {[%clk 0:03:00.1]} 2. Nf3 {[%clk 0:03:02.6]}
2... Bg4 {[%clk 0:03:01.2]} 3. e3 {[%clk 0:03:03.3]} 3... Nd7 {[%clk 0:03:01.4]}
4. c4 {[%clk 0:03:04]} 4... e6 {[%clk 0:02:59.3]} 5. b3 {[%clk 0:02:59.6]} 5...
Ngf6 {[%clk 0:02:58]} 6. Bb2 {[%clk 0:03:00.3]} 6... Bd6 {[%clk 0:02:57.3]} 7.
Nc3 {[%clk 0:03:01]} 7... c6 {[%clk 0:02:56.9]} 8. h3 {[%clk 0:03:01.4]} 8...
Bh5 {[%clk 0:02:46]} 9. Be2 {[%clk 0:02:55]} 9... O-O {[%clk 0:02:43]} 10. cxd5
{[%clk 0:02:13.7]} 10... exd5 {[%clk 0:02:37.6]} 11. g4 {[%clk 0:02:06.5]} 11...
Bg6 {[%clk 0:02:38.1]} 12. f5 {[%clk 0:02:07.7]} 12... Ne4 {[%clk 0:02:37.7]}
13. O-O {[%clk 0:01:42.3]} 13... Ng3 {[%clk 0:02:25.6]} 14. Rf2 {[%clk
0:01:34.4]} 14... Nxf5 {[%clk 0:02:21.6]} 15. gxf5 {[%clk 0:01:35.4]} 15... Bxf5
{[%clk 0:02:23.5]} 16. Bf1 {[%clk 0:01:28.1]} 16... Bg6 {[%clk 0:02:11.4]} 17.
Ne2 {[%clk 0:01:14.3]} 17... Qc7 {[%clk 0:02:01.2]} 18. Rc1 {[%clk 0:00:57.5]}
18... Rae8 {[%clk 0:02:00.4]} 19. Nfd4 {[%clk 0:00:51.7]} 19... Nc5 {[%clk
0:01:53.4]} 20. Nf4 {[%clk 0:00:44.1]} 20... Ne4 {[%clk 0:01:53.3]} 21. Rf3
{[%clk 0:00:33.1]} 21... Ng5 {[%clk 0:01:47.5]} 22. Rf2 {[%clk 0:00:26.6]} 22...
Bxf4 {[%clk 0:01:47.7]} 23. Rxf4 {[%clk 0:00:25.7]} 23... Ne4 {[%clk 0:01:44.8]}
24. Bg2 {[%clk 0:00:23.9]} 24... Qa5 {[%clk 0:01:38.9]} 25. Bc3 {[%clk
0:00:20.9]} 25... Nxc3 {[%clk 0:01:18.8]} 26. Rxc3 {[%clk 0:00:22.8]} 26... Qxa2
{[%clk 0:01:20]} 27. b4 {[%clk 0:00:20.5]} 27... a6 {[%clk 0:01:15.8]} 28. h4
{[%clk 0:00:18.4]} 28... Re5 {[%clk 0:01:14.4]} 29. Nf3 {[%clk 0:00:17.8]} 29...
Re4 {[%clk 0:00:56.2]} 30. Rxe4 {[%clk 0:00:18.2]} 30... Bxe4 {[%clk 0:00:56.8]}
31. Nd4 {[%clk 0:00:19.4]} 31... Re8 {[%clk 0:00:57]} 32. h5 {[%clk 0:00:13]}
32... Re5 {[%clk 0:00:49.8]} 33. h6 {[%clk 0:00:14]} 33... Rg5 {[%clk
0:00:49.4]} 34. Nf3 {[%clk 0:00:14.6]} 34... Rg6 {[%clk 0:00:34]} 35. hxg7
{[%clk 0:00:15.4]} 35... Bxf3 {[%clk 0:00:31.3]} 36. Qxf3 {[%clk 0:00:16.1]}
36... Qxd2 {[%clk 0:00:33]} 37. e4 {[%clk 0:00:14.8]} 37... dxe4 {[%clk
0:00:30.4]} 38. Qh3 {[%clk 0:00:09.7]} 38... Rxg2+ {[%clk 0:00:27.4]} 39. Qxg2
{[%clk 0:00:10.9]} 39... Qxc3 {[%clk 0:00:29.1]} 40. Qxe4 {[%clk 0:00:10.9]}
40... Qxg7+ {[%clk 0:00:29.8]} 41. Kh2 {[%clk 0:00:11.9]} 41... Qh6+ {[%clk
0:00:29.9]} 0-1

[Event "*** Titled Tuesday Blitz"]
[Site "Chess.com"]
[Date "2019.02.05"]
[Round "5"]
[White "FelixBlohberger"]
[Black "kuli4ik"]
[Result "0-1"]
[WhiteElo "2662"]
[BlackElo "2850"]
[TimeControl "180+2"]
[EndTime "14:06:33 PST"]
[Termination "kuli4ik won on time"]

1. e4 {[%clk 0:03:01.9]} 1... e6 {[%clk 0:03:00.8]} 2. d4 {[%clk 0:03:01]} 2...
d5 {[%clk 0:03:02.1]} 3. Nd2 {[%clk 0:03:01.8]} 3... a5 {[%clk 0:03:02.4]} 4.
Ngf3 {[%clk 0:02:59.8]} 4... a4 {[%clk 0:03:03.5]} 5. Bd3 {[%clk 0:02:45]} 5...
Nf6 {[%clk 0:03:01.6]} 6. O-O {[%clk 0:02:44.3]} 6... Be7 {[%clk 0:03:02.4]} 7.
e5 {[%clk 0:02:34.4]} 7... Nfd7 {[%clk 0:03:02.1]} 8. c4 {[%clk 0:02:34.2]} 8...
dxc4 {[%clk 0:02:55.8]} 9. Nxc4 {[%clk 0:02:34.9]} 9... Nc6 {[%clk 0:02:34.4]}
10. Be3 {[%clk 0:02:34.6]} 10... Nb4 {[%clk 0:02:32.7]} 11. Be4 {[%clk
0:02:27.5]} 11... Nd5 {[%clk 0:02:32.3]} 12. Qd2 {[%clk 0:02:20.2]} 12... b5
{[%clk 0:02:27]} 13. Na3 {[%clk 0:02:16.9]} 13... b4 {[%clk 0:02:18.7]} 14. Nc4
{[%clk 0:02:16.2]} 14... Ba6 {[%clk 0:02:19.2]} 15. Rac1 {[%clk 0:02:11.7]}
15... O-O {[%clk 0:02:16.1]} 16. Rfd1 {[%clk 0:02:10.9]} 16... Bb7 {[%clk
0:01:58.7]} 17. Bg5 {[%clk 0:01:52.5]} 17... Bxg5 {[%clk 0:01:48.8]} 18. Nxg5
{[%clk 0:01:54.4]} 18... h6 {[%clk 0:01:49.9]} 19. Nf3 {[%clk 0:01:50.7]} 19...
Qe7 {[%clk 0:01:39.8]} 20. Ne3 {[%clk 0:01:45.9]} 20... N7b6 {[%clk 0:01:39.2]}
21. Rc5 {[%clk 0:01:37.1]} 21... a3 {[%clk 0:01:35.8]} 22. b3 {[%clk 0:01:26.2]}
22... Nxe3 {[%clk 0:01:36]} 23. Qxe3 {[%clk 0:01:22.1]} 23... Bxe4 {[%clk
0:01:37]} 24. Qxe4 {[%clk 0:01:22]} 24... Nd5 {[%clk 0:01:38.5]} 25. Rxd5 {[%clk
0:01:22.4]} 25... exd5 {[%clk 0:01:39.2]} 26. Qxd5 {[%clk 0:01:23.8]} 26... c5
{[%clk 0:01:25]} 27. g3 {[%clk 0:00:26.4]} 27... Rad8 {[%clk 0:01:11.6]} 28. Qc4
{[%clk 0:00:26.2]} 28... cxd4 {[%clk 0:01:09.8]} 29. Rxd4 {[%clk 0:00:27.7]}
29... Rxd4 {[%clk 0:01:09.2]} 30. Qxd4 {[%clk 0:00:29.3]} 30... Rd8 {[%clk
0:01:06.5]} 31. Qc4 {[%clk 0:00:29.9]} 31... Qb7 {[%clk 0:01:05.4]} 32. Kg2
{[%clk 0:00:27]} 32... Rc8 {[%clk 0:01:06.5]} 33. Qd4 {[%clk 0:00:23.5]} 33...
Rc3 {[%clk 0:01:05.8]} 34. Qf4 {[%clk 0:00:18.4]} 34... Qd5 {[%clk 0:01:06.1]}
35. h4 {[%clk 0:00:17.6]} 35... h5 {[%clk 0:01:03.8]} 36. Qf5 {[%clk 0:00:14.5]}
36... g6 {[%clk 0:01:01.9]} 37. Qf6 {[%clk 0:00:12.5]} 37... Rc2 {[%clk
0:00:56.5]} 38. Qb6 {[%clk 0:00:08.4]} 38... Rxa2 {[%clk 0:00:50.8]} 39. Qxb4
{[%clk 0:00:09.1]} 39... Rb2 {[%clk 0:00:45]} 40. Qb8+ {[%clk 0:00:03.7]} 40...
Kg7 {[%clk 0:00:42.7]} 41. e6 {[%clk 0:00:03.8]} 41... Rxb3 {[%clk 0:00:36.7]}
0-1

[Event "*** Titled Tuesday Blitz"]
[Site "Chess.com"]
[Date "2019.02.05"]
[Round "5"]
[White "2165149677570"]
[Black "talento10"]
[Result "1-0"]
[WhiteElo "2307"]
[BlackElo "2416"]
[TimeControl "180+2"]
[EndTime "14:06:36 PST"]
[Termination "2165149677570 won by checkmate"]

1. d4 {[%clk 0:02:58.2]} 1... Nf6 {[%clk 0:03:00.2]} 2. c4 {[%clk 0:02:57.5]}
2... g6 {[%clk 0:03:01.6]} 3. g3 {[%clk 0:02:55.7]} 3... Bg7 {[%clk 0:03:02.7]}
4. Bg2 {[%clk 0:02:46.7]} 4... d6 {[%clk 0:03:04.6]} 5. Nf3 {[%clk 0:02:42.7]}
5... O-O {[%clk 0:02:54.3]} 6. Nc3 {[%clk 0:02:40.1]} 6... Nc6 {[%clk 0:02:54]}
7. d5 {[%clk 0:02:38.9]} 7... Na5 {[%clk 0:02:51.5]} 8. Nd2 {[%clk 0:02:32.8]}
8... c5 {[%clk 0:02:51.8]} 9. O-O {[%clk 0:02:31.1]} 9... Rb8 {[%clk 0:02:47.9]}
10. e4 {[%clk 0:02:29.1]} 10... a6 {[%clk 0:02:47.9]} 11. Qe2 {[%clk 0:02:27.7]}
11... Ne8 {[%clk 0:02:21.5]} 12. a4 {[%clk 0:02:17]} 12... Bd7 {[%clk
0:02:15.2]} 13. Qd3 {[%clk 0:01:42.6]} 13... Nc7 {[%clk 0:02:13.8]} 14. Re1
{[%clk 0:01:33.4]} 14... f5 {[%clk 0:01:49]} 15. exf5 {[%clk 0:01:29.1]} 15...
Bxf5 {[%clk 0:01:48.8]} 16. Be4 {[%clk 0:01:29.4]} 16... Qd7 {[%clk 0:01:34]}
17. Bxf5 {[%clk 0:01:18.9]} 17... Rxf5 {[%clk 0:01:33.8]} 18. Nde4 {[%clk
0:01:01.5]} 18... Rbf8 {[%clk 0:01:32.1]} 19. Be3 {[%clk 0:00:55.5]} 19... h6
{[%clk 0:01:31.8]} 20. f4 {[%clk 0:00:53.9]} 20... Nb3 {[%clk 0:01:31.1]} 21.
Rad1 {[%clk 0:00:50.4]} 21... Nd4 {[%clk 0:01:31]} 22. Kf2 {[%clk 0:00:50.9]}
22... e5 {[%clk 0:01:13.4]} 23. dxe6 {[%clk 0:00:43.5]} 23... Ncxe6 {[%clk
0:01:13]} 24. Nd5 {[%clk 0:00:44.5]} 24... g5 {[%clk 0:00:55.8]} 25. g4 {[%clk
0:00:45]} 25... Nxf4 {[%clk 0:00:47.3]} 26. Bxf4 {[%clk 0:00:39.7]} 26... Rxf4+
{[%clk 0:00:48.5]} 27. Nxf4 {[%clk 0:00:40.2]} 27... Rxf4+ {[%clk 0:00:50.1]}
28. Kg2 {[%clk 0:00:36.5]} 28... Qxg4+ {[%clk 0:00:31.9]} 29. Ng3 {[%clk
0:00:34.3]} 29... Nf5 {[%clk 0:00:06.7]} 30. Kh1 {[%clk 0:00:21.5]} 30... Nxg3+
{[%clk 0:00:03.6]} 31. Qxg3 {[%clk 0:00:21.6]} 31... Qxg3 {[%clk 0:00:04.7]} 32.
hxg3 {[%clk 0:00:23.4]} 32... Rxc4 {[%clk 0:00:05.9]} 33. Rxd6 {[%clk 0:00:22]}
33... Bxb2 {[%clk 0:00:05.8]} 34. Rd7 {[%clk 0:00:22.5]} 34... Bf6 {[%clk
0:00:02.4]} 35. Re8# {[%clk 0:00:22.8]} 1-0